bitfinex/quotes_ETHUSD_20241223
["timestamp","ask_amount","ask_price","bid_price","bid_amount"]
[1734922683409,1.36447127,3287.3,3285.6,0.9747]
[1734922683584,3.04288,3286.4,3285.6,0.9747]
[1734922684404,1.36447127,3287.3,3285.6,0.9747]
[1734922684738,0.758,3287.1,3285.5,0.767]
[1734922684883,3.04256,3286.8,3285.5,0.767]
[1734922685085,3.0,3286.5,3284.7,0.8177]
[1734922685321,3.04341,3285.8,3284.7,0.8177]
[1734922685498,3.04302,3286.2,3284.7,0.8177]
[1734922685697,3.0434,3285.8,3284.7,0.8177]
[1734922686200,3.04362,3285.6,3284.7,0.8177]
[1734922687031,3.04302,3286.2,3284.7,0.8177]
[1734922687203,3.04372,3285.5,3284.7,0.8177]
[1734922687404,3.04377,3285.4,3284.7,0.8177]
[1734922688025,3.0436,3285.6,3284.7,0.8177]
[1734922688528,3.04368,3285.5,3284.7,0.8177]
[1734922689091,3.04377,3285.4,3284.7,0.8177]
[1734922689628,3.04396,3285.2,3284.7,0.8177]
[1734922690003,3.04353,3285.7,3284.7,0.8177]
[1734922690244,3.0,3286.2,3284.7,0.8177]
[1734922690456,3.0436,3285.6,3284.7,0.8177]
[1734922690723,3.0,3286.2,3284.7,0.8177]
[1734922691237,3.04375,3285.5,3284.7,0.8177]
[1734922691393,3.04312,3286.1,3284.7,0.8177]
[1734922691590,3.04393,3285.3,3284.7,0.8177]
[1734922692023,3.04402,3285.2,3284.7,0.8177]
[1734922695732,3.0,3285.6,3284.3,0.7701]
[1734922695942,3.0,3285.6,3283.5,8.98]
[1734922695943,3.04469,3284.4,3283.5,0.7701]
[1734922696103,3.04402,3285.2,3283.6,0.7701]
[1734922696308,3.04432,3284.8,3283.8,0.7701]
[1734922696510,3.04443,3284.7,3283.8,0.7701]
[1734922696705,0.7866,3285.3,3283.8,0.7701]
[1734922696906,3.66586994,3285.4,3283.4,0.7701]
[1734922696907,0.7866,3284.4,3283.4,0.7701]
[1734922697537,3.04441,3284.7,3283.4,0.7701]
[1734922697905,3.04451,3284.6,3283.4,0.7701]
[1734922698111,3.0446,3284.5,3283.4,0.7701]
[1734922698311,3.04502,3284.1,3283.4,0.7701]
[1734922698821,3.0,3284.5,3283.4,0.7701]
[1734922699225,3.4284595,3284.7,3282.2,3.04664]
[1734922699226,0.8273,3284.0,3282.5,0.7935]
[1734922699397,3.04571,3283.3,3282.5,0.7935]
[1734922699596,3.04553,3283.5,3282.6,0.97735]
[1734922699996,0.59991952,3284.4,3282.6,0.97735]
[1734922699997,3.4284595,3284.3,3282.8,0.7935]
[1734922700360,3.04488,3284.2,3282.8,0.7935]
[1734922700902,3.04472,3284.4,3283.0,3.0459]
[1734922701213,3.4284595,3284.7,3283.3,0.7935]
[1734922701413,3.04482,3284.3,3283.3,0.7935]
[1734922701603,3.045,3284.1,3283.3,0.7935]
[1734922702241,3.4284595,3284.7,3283.3,0.7935]
[1734922702242,3.04518,3283.9,3283.3,0.7935]
[1734922702598,3.0454,3283.7,3283.3,0.7935]
[1734922702795,3.04567,3283.4,3283.0,0.8104]
[1734922703437,3.0455,3283.6,3283.0,0.8104]
[1734922703615,3.04563,3283.4,3282.4,0.7702]
[1734922703815,3.04563,3283.4,3282.5,1.03548746]
[1734922704304,3.4284595,3284.3,3282.7,0.7702]
[1734922704702,3.04497,3284.1,3282.7,0.7702]
[1734922704924,3.04503,3284.1,3282.7,0.7702]
[1734922705135,3.04503,3284.1,3282.8,0.7977]
[1734922705319,3.04517,3283.9,3283.0,0.7977]
[1734922705514,3.4284595,3284.3,3283.0,0.7977]
[1734922705832,3.04555,3283.5,3283.0,0.7977]
[1734922707540,3.04513,3284.0,3283.0,0.7977]
[1734922707751,3.04532,3283.8,3283.0,0.7977]
[1734922709249,6.4733195,3284.3,3283.0,0.7977]
[1734922709452,3.04505,3284.1,3283.0,0.7977]
[1734922709818,3.04507,3284.0,3283.0,0.7977]
[1734922710157,3.04517,3283.9,3283.0,0.7977]
[1734922711146,3.04498,3284.1,3283.0,0.7977]
[1734922711379,3.4284595,3284.3,3283.0,0.7977]
[1734922711551,3.04519,3283.9,3283.0,0.7977]
[1734922711918,3.4284595,3284.3,3283.0,1.17747]
[1734922712220,5.87160161,3284.0,3283.0,0.7977]
[1734922712542,3.04534,3283.8,3283.0,0.7977]
[1734922714562,2.82647161,3284.0,3283.0,0.7977]
[1734922715060,5.87155161,3284.0,3283.0,0.7977]
[1734922715960,3.04516,3283.9,3283.0,0.7977]
[1734922716165,3.04532,3283.8,3283.0,0.7977]
[1734922717159,3.0454,3283.7,3283.0,0.7977]
[1734922718276,3.04515,3283.9,3283.0,0.7977]
[1734922718568,3.04548,3283.6,3283.0,0.7977]
[1734922719529,3.0452,3283.9,3283.0,0.7977]
[1734922719769,3.60557161,3284.4,3283.0,0.7977]
[1734922719942,3.04494,3284.2,3283.1,0.8316]
[1734922720131,3.04494,3284.2,3283.2,0.387752]
[1734922720338,3.04494,3284.2,3283.3,0.8316]
[1734922720566,0.8217,3284.7,3283.3,0.8316]
[1734922720772,3.04442,3284.7,3283.7,0.7855]
[1734922721351,3.04452,3284.6,3283.7,0.7855]
[1734922723547,2.82647161,3284.8,3283.7,0.7855]
[1734922723876,3.04444,3284.7,3283.7,0.7855]
[1734922724174,3.04461,3284.5,3283.8,0.383093]
[1734922724377,3.04461,3284.5,3283.7,0.7855]
[1734922724569,3.04441,3284.8,3283.7,0.7855]
[1734922725374,3.04442,3284.7,3283.7,0.7855]
[1734922726067,3.04453,3284.6,3283.7,0.7855]
[1734922726360,3.0446,3284.5,3283.7,0.7855]
[1734922726559,2.82647161,3284.6,3283.7,0.7855]
[1734922727273,3.0446,3284.5,3283.7,0.7855]
[1734922727498,0.7742,3284.7,3283.0,0.7516]
[1734922727499,2.82647161,3284.0,3283.0,0.7516]
[1734922727710,3.04565,3283.4,3283.0,0.7516]
[1734922727991,3.04565,3283.4,3282.5,8.98]
[1734922727992,2.82647161,3283.4,3282.5,0.7516]
[1734922728162,2.82647161,3283.1,3282.5,0.7516]
[1734922728351,3.046,3283.0,3282.5,1.14071333]
[1734922728556,2.82647161,3283.1,3282.5,0.7516]
[1734922728879,3.04581,3283.2,3282.5,0.7516]
[1734922729390,5.87209161,3283.4,3282.5,0.7516]
[1734922730906,3.04562,3283.4,3282.5,0.7516]
[1734922731057,3.04573,3283.3,3282.5,0.7516]
[1734922732297,3.04543,3283.6,3282.5,0.7516]
[1734922732818,2.82647161,3283.7,3282.5,0.7516]
[1734922733161,5.87182161,3283.7,3282.5,3.04644]
[1734922733361,0.7742,3284.0,3282.7,0.7737]
[1734922733362,3.60067161,3284.0,3282.7,0.7737]
[1734922733762,2.82647161,3283.7,3282.7,0.7737]
[1734922734163,3.04564,3283.4,3282.7,0.7737]
[1734922735495,3.60067161,3284.0,3282.7,0.7737]
[1734922735704,3.04544,3283.6,3282.7,0.7737]
[1734922735902,3.04526,3283.8,3282.7,0.7737]
[1734922736379,3.04526,3283.8,3282.8,0.382005]
[1734922736716,3.04488,3284.2,3282.9,0.8086]
[1734922736916,0.771,3284.3,3282.9,0.8086]
[1734922737102,3.04534,3283.7,3282.9,0.8086]
[1734922738284,3.04545,3283.6,3282.9,0.8086]
[1734922738480,3.771,3284.3,3282.9,0.8086]
[1734922738872,3.04517,3283.9,3282.9,0.8086]
[1734922739943,2.82647161,3284.4,3282.9,0.8086]
[1734922740070,0.7773,3284.6,3283.1,0.8232]
[1734922740267,0.7773,3284.6,3283.2,1.85852]
[1734922740473,0.7773,3284.6,3283.3,0.8232]
[1734922740784,3.04493,3284.2,3283.4,0.8232]
[1734922740987,2.82647161,3283.9,3283.0,8.98]
[1734922741209,3.04608,3283.0,3282.4,0.8232]
[1734922741375,3.04618,3282.8,3282.4,1.21947333]
[1734922741575,2.82647161,3282.9,3282.3,3.13958886]
[1734922741939,3.04618,3282.8,3282.3,3.13958886]
[1734922742212,3.04597,3283.1,3282.3,3.13958886]
[1734922742422,0.7694,3283.5,3282.3,3.13958886]
[1734922742594,3.04604,3283.0,3282.3,3.13958886]
[1734922742912,3.04582,3283.2,3282.5,0.811]
[1734922743714,2.52667162,3283.3,3282.5,0.811]
[1734922743872,3.04561,3283.5,3282.5,0.811]
[1734922744514,3.04533,3283.8,3282.6,0.7775]
[1734922744807,2.52667162,3283.9,3282.8,0.7775]
[1734922744977,1.39293786,3284.1,3282.8,0.7775]
[1734922744978,3.04543,3283.6,3282.8,0.7775]
[1734922745613,1.39293786,3284.1,3282.8,0.7775]
[1734922745783,2.52667162,3284.3,3282.8,0.7775]
[1734922745784,3.04507,3284.0,3282.8,0.7775]
[1734922746204,3.04507,3284.0,3283.0,0.8113]
[1734922746405,3.04507,3284.0,3283.1,0.385737]
[1734922746917,3.30297162,3284.7,3283.3,0.8113]
[1734922747117,3.04461,3284.5,3283.4,3.04561]
[1734922747417,2.52667162,3284.7,3283.5,0.8113]
[1734922748320,3.0444,3284.8,3283.5,0.8113]
[1734922748516,3.04479,3284.3,3283.5,0.8113]
[1734922749017,3.04458,3284.6,3283.5,0.8113]
[1734922751100,1.37799918,3285.1,3283.5,0.8113]
[1734922751436,3.04441,3284.7,3283.5,0.8113]
[1734922751625,3.04476,3284.4,3283.5,0.8113]
[1734922753192,3.04414,3285.0,3283.5,0.8113]
[1734922753505,3.04461,3284.5,3283.5,0.8113]
[1734922754107,3.04414,3285.0,3283.5,0.8113]
[1734922754310,3.04431,3284.9,3283.7,0.7697]
[1734922754625,3.04431,3284.9,3283.8,0.7697]
[1734922754829,2.52667162,3285.3,3283.9,0.7697]
[1734922755628,2.52667162,3285.3,3284.0,0.55]
[1734922755802,2.52667162,3285.6,3284.1,0.823]
[1734922756003,3.04395,3285.2,3284.1,0.823]
[1734922756206,2.52667162,3285.6,3284.1,0.823]
[1734922756533,3.04462,3284.5,3284.1,0.823]
[1734922756698,3.42619283,3285.4,3284.1,0.823]
[1734922756699,3.04469,3284.4,3284.1,0.823]
[1734922762551,3.04446,3284.7,3284.1,0.823]
[1734922763667,0.60046344,3285.4,3284.1,0.823]
[1734922763836,3.04425,3284.9,3284.1,0.823]
[1734922764956,0.60046344,3285.4,3284.1,0.823]
[1734922765178,3.04434,3284.8,3284.1,0.823]
[1734922766177,2.82353159,3285.1,3284.1,0.823]
[1734922766476,3.04498,3284.1,3283.8,0.8024]
[1734922766644,3.04454,3284.6,3283.8,0.8024]
[1734922767025,3.04466,3284.5,3283.8,0.8024]
[1734922767827,3.04423,3284.9,3283.8,0.8024]
[1734922767828,3.04472,3284.4,3283.8,0.8024]
[1734922768281,3.04451,3284.6,3283.8,0.8024]
[1734922768481,3.04455,3284.6,3283.8,0.8024]
[1734922768646,3.04423,3284.9,3283.8,0.8024]
[1734922768845,3.0,3284.7,3283.8,0.8024]
[1734922769052,3.0,3284.7,3283.4,0.7924]
[1734922769053,3.04553,3283.5,3283.4,0.7924]
[1734922769385,3.0446,3284.5,3282.9,1.24993003]
[1734922769386,0.7945,3284.5,3283.0,9.7959]
[1734922769549,3.04507,3284.0,3283.1,1.104583]
[1734922769951,3.0,3284.4,3283.2,0.8159]
[1734922770150,3.04514,3284.0,3283.2,0.8159]
[1734922770544,1.4051749,3284.5,3283.2,0.8159]
[1734922770786,0.7887,3283.8,3282.9,0.7994]
[1734922771182,3.04571,3283.4,3282.9,0.7994]
[1734922771711,3.04571,3283.3,3282.9,0.7994]
[1734922771859,3.04581,3283.2,3282.9,0.7994]
[1734922772357,3.04599,3283.0,3282.9,0.7994]
[1734922772558,3.04534,3283.7,3282.4,0.7737]
[1734922772761,3.0463,3282.7,3282.4,0.7737]
[1734922773563,0.8,3283.2,3281.9,0.7737]
[1734922773813,0.8,3283.2,3281.9,1.874063]
[1734922774018,3.4224486,3283.1,3281.9,0.7737]
[1734922774195,3.04683,3282.1,3281.9,0.7737]
[1734922774720,0.8,3283.0,3281.9,0.7737]
[1734922775063,3.04664,3282.3,3281.9,0.7737]
[1734922775342,3.0458,3283.3,3281.9,0.7737]
[1734922775480,3.04606,3283.0,3281.9,0.7737]
[1734922775810,3.04609,3282.9,3281.9,0.7737]
[1734922776028,3.04609,3282.9,3282.0,0.37737]
[1734922776226,3.04587,3283.2,3282.1,0.7891]
[1734922778486,3.04566,3283.4,3282.2,0.7891]
[1734922779506,3.04566,3283.4,3282.2,3.04669]
[1734922779682,0.829,3284.1,3282.7,3.04625]
[1734922779865,3.04516,3283.9,3282.8,1.093725]
[1734922780266,3.04516,3283.9,3282.9,0.8289]
[1734922781283,3.04524,3283.9,3282.9,0.8289]
[1734922783397,4.02340543,3284.3,3282.9,0.8289]
[1734922783613,0.7631,3283.8,3282.9,0.8289]
[1734922783813,3.04553,3283.5,3282.9,0.8289]
[1734922784311,0.7631,3283.8,3282.9,0.8289]
[1734922784497,3.04535,3283.7,3282.9,0.8289]
[1734922784849,0.7743,3284.2,3282.9,0.8289]
[1734922785196,3.04536,3283.7,3282.9,0.8289]
[1734922787599,0.7743,3284.2,3282.9,0.8289]
[1734922787600,3.04516,3283.9,3282.9,0.8289]
[1734922787944,3.04528,3283.8,3282.9,0.8289]
[1734922788242,0.7743,3284.2,3282.9,0.8289]
[1734922788243,3.04508,3284.0,3282.9,0.8289]
[1734922788397,3.04524,3283.9,3282.9,0.8289]
[1734922788592,3.04526,3283.8,3282.9,0.8289]
[1734922788991,3.04514,3284.0,3282.9,0.8289]
[1734922789209,3.04514,3284.0,3282.9,1.216416]
[1734922789610,3.04524,3283.9,3282.9,1.216416]
[1734922789829,0.7743,3284.2,3282.9,1.216416]
[1734922790054,0.7743,3284.2,3282.9,0.8289]
[1734922790648,3.8298,3284.5,3282.9,0.8289]
[1734922790967,0.8298,3284.5,3282.9,0.8289]
[1734922792230,2.82563961,3284.4,3282.9,0.8289]
[1734922796053,2.82563961,3284.1,3282.9,0.8289]
[1734922796226,2.82563961,3284.1,3282.9,1.21179]
[1734922798245,2.82563961,3284.1,3282.9,0.8289]
[1734922799745,0.60607168,3284.0,3282.9,0.8289]
[1734922800636,2.82563961,3284.1,3282.9,0.8289]
[1734922800839,6.65543961,3284.5,3282.9,0.8289]
[1734922801241,3.65543961,3284.5,3282.9,0.8289]
[1734922801690,2.52667162,3284.7,3283.1,0.8112]
[1734922801963,2.52667162,3284.7,3283.4,0.8112]
[1734922802166,2.52667162,3284.7,3282.4,0.821]
[1734922802167,2.82563961,3283.8,3282.4,0.821]
[1734922802626,2.82563961,3283.1,3282.4,0.821]
[1734922802827,2.82563961,3283.1,3282.6,1.24993003]
[1734922803022,2.82563961,3283.4,3282.6,1.24993003]
[1734922803361,2.82563961,3283.7,3282.7,0.8044]
[1734922803840,3.44049494,3283.7,3282.7,0.8044]
[1734922804349,2.82563961,3283.1,3281.5,0.7693]
[1734922804551,2.82563961,3283.1,3281.6,0.7693]
[1734922804721,2.82563961,3283.1,3281.8,0.7693]
[1734922806178,2.82563961,3282.5,3281.8,0.7693]
[1734922806623,2.82563961,3282.2,3281.2,0.7516]
[1734922807649,2.82563961,3282.5,3281.2,0.7516]
[1734922807831,2.52667162,3282.8,3281.4,0.7728]
[1734922808166,2.52667162,3282.8,3281.6,0.7728]
[1734922808755,2.52667162,3282.8,3281.7,0.55]
[1734922808930,2.82563961,3283.4,3282.0,0.7941]
[1734922809131,2.82563961,3283.7,3282.0,0.7941]
[1734922809558,0.7544,3283.8,3282.0,0.7941]
[1734922809763,0.60618448,3283.7,3282.1,0.7749]
[1734922809976,0.60618448,3283.7,3282.3,0.7749]
[1734922811031,0.7544,3283.8,3282.3,0.7749]
[1734922811233,3.37386131,3284.1,3282.3,0.7749]
[1734922811878,0.8255,3284.1,3282.3,0.7749]
[1734922812173,0.61942474,3283.8,3282.3,0.7749]
[1734922813372,3.42494366,3283.6,3282.3,0.7749]
[1734922813579,3.0,3283.5,3282.3,0.7749]
[1734922813781,3.0,3283.5,3282.4,0.00177]
[1734922813940,0.7536,3283.4,3282.4,0.00177]
[1734922814141,3.0,3283.5,3282.4,0.00177]
[1734922814142,3.42494366,3283.2,3282.4,0.00177]
[1734922814337,3.7536,3283.1,3282.4,0.00177]
[1734922814539,3.42494366,3282.7,3282.4,0.00177]
[1734922815241,0.7536,3283.0,3282.4,0.00177]
[1734922815242,3.30196131,3283.0,3282.4,0.00177]
[1734922815440,0.6061179,3282.8,3282.4,0.00177]
[1734922815974,4.24934366,3282.7,3282.4,0.00177]
[1734922816287,0.8244,3282.5,3281.0,0.777]
[1734922816579,0.8244,3281.9,3281.0,0.777]
[1734922816881,0.8244,3281.9,3280.7,0.777]
[1734922817482,3.8244,3281.9,3280.7,0.777]
[1734922817679,0.59635657,3281.8,3280.8,0.20231388]
[1734922817888,2.54836131,3282.1,3280.9,0.777]
[1734922818041,3.62155301,3282.0,3280.9,0.777]
[1734922819594,0.62155301,3282.0,3280.9,0.777]
[1734922821482,0.8244,3281.9,3280.5,0.777]
[1734922821678,3.8244,3281.5,3279.5,8.98]
[1734922821867,3.8244,3281.5,3279.6,1.675]
[1734922822288,0.8244,3281.4,3279.6,1.675]
[1734922822451,0.62115402,3280.9,3279.6,0.777]
[1734922822648,0.8244,3281.6,3279.7,0.777]
[1734922822846,0.60448817,3281.8,3280.1,0.777]
[1734922823060,0.60448817,3281.8,3280.2,1.19719437]
[1734922823448,0.60448817,3281.8,3280.2,0.777]
[1734922823657,0.8085,3281.7,3280.2,0.777]
[1734922824813,0.8087,3282.1,3280.2,8.98]
[1734922825097,1.41385785,3282.1,3280.5,0.7521]
[1734922826451,3.0,3282.3,3280.8,8.98]
[1734922826708,3.42494366,3282.4,3281.0,0.7951]
[1734922827467,0.59667233,3282.3,3281.0,0.7951]
[1734922827809,3.42494366,3282.0,3281.0,0.7951]
[1734922828215,0.7805,3282.2,3281.0,0.7951]
[1734922829068,3.04711,3281.8,3281.0,0.7951]
[1734922829269,3.04711,3281.8,3281.0,1.77261]
[1734922830078,3.0473,3281.6,3281.0,1.77261]
[1734922830287,3.0473,3281.6,3281.0,0.7951]
[1734922830532,3.04707,3281.9,3281.0,0.7951]
[1734922830670,0.7805,3282.2,3281.0,0.7951]
[1734922831089,3.04766,3281.3,3281.0,0.7951]
[1734922831369,3.42494366,3282.0,3281.0,0.7951]
[1734922831569,3.04786,3281.0,3280.5,0.7737]
[1734922831816,3.04815,3280.7,3280.2,0.7737]
[1734922832005,3.04845,3280.4,3280.2,0.7737]
[1734922832179,3.04837,3280.5,3280.2,0.7737]
[1734922832503,3.04841,3280.4,3280.2,0.7737]
[1734922832710,3.04848,3280.4,3280.2,0.7737]
[1734922832907,3.0485,3280.3,3279.3,0.7532]
[1734922833075,0.818,3280.8,3279.3,0.7532]
[1734922833496,0.818,3280.8,3279.4,0.380268]
[1734922833702,3.04826,3280.6,3279.5,0.7544]
[1734922833908,0.818,3280.8,3279.5,0.7544]
[1734922834405,3.04825,3280.6,3279.5,0.7544]
[1734922834617,3.0,3281.0,3279.5,0.7544]
[1734922834818,3.04842,3280.4,3279.5,0.7544]
[1734922835396,3.0,3281.0,3279.5,0.7544]
[1734922835731,3.04814,3280.7,3279.5,0.7544]
[1734922835910,3.04814,3280.7,3279.6,0.380373]
[1734922836119,3.04831,3280.5,3279.7,0.8316]
[1734922836433,3.0,3281.0,3279.7,0.8316]
[1734922836573,3.04822,3280.6,3279.7,0.8316]
[1734922836771,3.04802,3280.9,3279.7,0.8316]
[1734922836997,3.04802,3280.9,3279.9,0.8316]
[1734922837523,0.60481766,3281.1,3279.9,0.8316]
[1734922837524,4.02976132,3281.1,3279.9,0.8316]
[1734922837735,3.04871,3280.1,3279.9,0.8316]
[1734922837915,3.04873,3280.1,3279.9,0.8316]
[1734922838219,3.04898,3279.8,3279.0,0.8316]
[1734922839070,3.0488,3280.0,3279.0,0.8316]
[1734922839275,7.20174366,3280.7,3279.0,0.8316]
[1734922839276,3.04844,3280.4,3279.0,0.8316]
[1734922839517,3.0,3280.5,3279.0,0.8316]
[1734922839829,3.04862,3280.2,3279.4,0.8316]
[1734922840028,3.0,3280.8,3279.4,0.8316]
[1734922840195,3.04865,3280.2,3279.4,0.8316]
[1734922841214,3.04901,3279.8,3279.4,0.8316]
[1734922841388,3.04873,3280.1,3279.4,0.8316]
[1734922841778,3.04838,3280.5,3279.4,0.8316]
[1734922842407,3.04838,3280.5,3279.6,0.8316]
[1734922843291,3.04846,3280.4,3279.6,0.8316]
[1734922843488,0.60563504,3280.9,3279.6,0.8316]
[1734922843489,3.04821,3280.7,3279.6,0.8316]
[1734922843701,0.60563504,3280.9,3279.6,0.8316]
[1734922843904,3.04823,3280.6,3279.6,0.8316]
[1734922844083,3.04823,3280.6,3279.7,0.812]
[1734922844815,1.0,3280.2,3279.7,0.812]
[1734922846529,3.04892,3279.9,3279.7,0.812]
[1734922846859,3.049,3279.8,3279.4,0.812]
[1734922847287,1.0,3280.2,3279.4,0.812]
[1734922847288,3.04906,3279.7,3279.4,0.812]
[1734922848000,4.04867,3280.2,3278.3,0.8279]
[1734922848208,3.04944,3279.3,3278.4,0.8279]
[1734922848599,3.04953,3279.2,3278.4,0.8279]
[1734922849016,3.04912,3279.7,3278.4,0.8279]
[1734922849194,3.04983,3278.9,3278.4,0.8279]
[1734922849388,3.60036115,3279.4,3278.4,0.8279]
[1734922849712,3.60036115,3279.4,3277.6,0.8288]
[1734922849713,3.05009,3278.6,3277.6,0.8288]
[1734922849914,3.05009,3278.6,3277.6,2.1302855]
[1734922850132,3.04988,3278.9,3277.7,0.7664]
[1734922850430,0.60578846,3278.9,3277.8,3.7664]
[1734922850653,3.04944,3279.3,3277.8,3.7664]
[1734922850833,3.04961,3279.2,3277.9,0.7664]
[1734922851029,3.04961,3279.2,3278.0,0.681713]
[1734922851230,1.3655796,3279.4,3278.1,0.7664]
[1734922851392,3.04972,3279.0,3278.1,0.7664]
[1734922851711,3.0498,3279.0,3278.1,0.7664]
[1734922853555,3.04982,3278.9,3278.1,0.7664]
[1734922855052,3.04989,3278.9,3278.1,0.7664]
[1734922855254,3.04973,3279.0,3278.1,0.7664]
[1734922855621,3.04973,3279.0,3277.6,10.2814855]
[1734922855622,3.7967,3278.9,3277.6,0.7747]
[1734922855831,3.05038,3278.3,3277.6,0.7747]
[1734922856134,3.0504,3278.3,3277.6,0.7747]
[1734922856337,3.7967,3278.9,3277.6,0.7747]
[1734922856338,3.05054,3278.2,3277.6,0.7747]
[1734922856534,0.7967,3278.9,3277.6,0.7747]
[1734922856738,3.04981,3278.9,3277.9,0.7916]
[1734922857318,3.04981,3278.9,3277.9,1.17585]
[1734922857519,3.04958,3279.2,3278.1,0.7916]
[1734922857773,3.04972,3279.0,3278.1,0.7916]
[1734922858076,3.04981,3278.9,3278.1,0.7916]
[1734922858663,0.5985796,3279.4,3278.1,0.7916]
[1734922858978,3.05003,3278.7,3278.1,0.7916]
[1734922860273,3.04982,3278.9,3278.1,0.7916]
[1734922860568,3.04958,3279.2,3278.1,0.7916]
[1734922860785,3.5985796,3279.4,3278.1,0.7916]
[1734922861285,3.04994,3278.8,3278.1,0.7916]
[1734922861445,3.04999,3278.7,3278.1,0.7916]
[1734922861826,3.0,3279.0,3278.1,0.7916]
[1734922862041,3.05045,3278.2,3278.1,0.7916]
[1734922862364,3.05045,3278.2,3277.3,9.7443]
[1734922862564,3.05045,3278.2,3277.3,11.01873]
[1734922863142,1.43583802,3278.9,3277.3,11.01873]
[1734922863367,3.05066,3278.0,3277.3,0.7643]
[1734922863577,3.05008,3278.6,3277.3,0.7643]
[1734922863868,3.05032,3278.4,3277.3,0.7643]
[1734922864053,6.48479562,3278.7,3277.3,0.7643]
[1734922864255,3.05037,3278.3,3277.3,0.7643]
[1734922864585,3.05065,3278.0,3277.3,0.7643]
[1734922864872,3.05039,3278.3,3277.3,0.7643]
[1734922865070,3.05003,3278.7,3277.5,3.05108]
[1734922865275,3.04973,3279.0,3277.9,0.7866]
[1734922865568,3.0,3279.0,3278.0,0.7866]
[1734922865773,3.05014,3278.6,3278.0,0.7866]
[1734922866071,3.04986,3278.9,3278.0,0.7866]
[1734922866230,3.0,3279.1,3278.0,0.7866]
[1734922866567,0.62008493,3279.2,3278.2,0.7578]
[1734922866768,0.62008493,3279.2,3278.3,0.680834]
[1734922866971,0.62008493,3279.2,3278.4,0.8096]
[1734922866972,3.04962,3279.1,3278.4,0.8096]
[1734922867172,0.62008493,3279.2,3278.4,0.8096]
[1734922868166,3.66962493,3279.2,3278.4,0.8096]
[1734922869169,0.62008493,3279.2,3278.4,0.8096]
[1734922869368,3.05012,3278.6,3278.4,0.8096]
[1734922869867,0.7732,3279.1,3277.8,0.8148]
[1734922870070,3.05032,3278.4,3277.8,0.8148]
[1734922870250,3.05054,3278.1,3277.8,0.8148]
[1734922870569,3.05035,3278.4,3277.8,0.8148]
[1734922870771,0.7732,3279.1,3277.8,0.8148]
[1734922870935,3.04974,3279.0,3277.8,0.8148]
[1734922871142,3.05025,3278.5,3277.8,0.8148]
[1734922871959,0.7732,3279.1,3277.8,0.8148]
[1734922872160,3.05056,3278.1,3277.8,0.8148]
[1734922872339,0.8108,3278.5,3277.8,0.8148]
[1734922872683,0.8108,3278.5,3276.9,8.98]
[1734922872684,3.05087,3277.8,3277.0,0.8109]
[1734922873236,3.0512,3277.4,3277.0,0.8109]
[1734922873549,3.05147,3277.1,3276.7,9.7909]
[1734922873768,3.8108,3277.8,3276.7,9.7909]
[1734922874079,3.0513,3277.3,3276.7,9.7909]
[1734922874275,6.86169,3277.8,3276.7,0.8109]
[1734922874574,3.05168,3276.9,3276.7,0.8109]
[1734922874772,0.8033,3277.4,3276.2,0.7927]
[1734922874974,3.05171,3276.9,3276.2,0.7927]
[1734922875156,3.05188,3276.7,3276.2,0.7927]
[1734922876180,3.05133,3277.3,3276.3,8.98]
[1734922876342,3.05133,3277.3,3276.4,9.878]
[1734922876672,3.05133,3277.3,3276.5,0.8183]
[1734922876878,0.7515,3278.2,3276.7,0.8183]
[1734922877081,3.05091,3277.8,3276.7,0.8183]
[1734922877242,3.05095,3277.7,3276.8,1.03483]
[1734922877658,3.05073,3277.9,3276.9,0.8183]
[1734922878089,3.05073,3277.9,3276.9,8.98]
[1734922878280,3.05073,3277.9,3277.0,0.8183]
[1734922878790,6.80174,3278.5,3277.0,0.8183]
[1734922879088,3.05029,3278.4,3277.2,0.8183]
[1734922879245,3.05029,3278.4,3277.4,0.8183]
[1734922879439,3.05005,3278.7,3277.4,3.86949]
[1734922879659,3.05008,3278.6,3277.5,0.441949]
[1734922880244,0.7515,3278.8,3277.5,0.441949]
[1734922880553,0.7515,3279.1,3277.6,0.8183]
[1734922880866,3.04986,3278.9,3277.8,3.8183]
[1734922881037,3.0499,3278.8,3278.0,3.0]
[1734922882070,0.61830215,3279.2,3278.3,0.8183]
[1734922882369,3.66783215,3279.2,3278.3,0.8183]
[1734922882566,3.04906,3279.7,3278.3,0.8183]
[1734922882567,3.04906,3279.7,3278.4,12.03025]
[1734922882797,3.80037,3279.9,3278.7,3.8183]
[1734922882956,4.80018,3280.2,3278.7,11.98]
[1734922883139,1.7515,3280.2,3278.8,0.8183]
[1734922883482,1.7515,3280.2,3278.6,8.98]
[1734922883483,3.0487,3280.1,3278.9,3.0498]
[1734922883656,3.0487,3280.1,3279.0,9.7983]
[1734922883857,3.0487,3280.1,3279.1,1.28481]
[1734922884064,3.0,3280.0,3279.1,1.28481]
[1734922884481,6.04884,3280.0,3279.1,1.28481]
[1734922884667,3.0,3280.0,3279.1,1.28481]
[1734922884871,3.0,3280.1,3279.1,1.28481]
[1734922885043,3.0,3280.1,3279.2,1.108311]
[1734922885696,1.0,3280.2,3279.3,0.8183]
[1734922885908,1.0,3280.2,3279.3,12.84769]
[1734922886055,1.0,3280.2,3279.3,9.7983]
[1734922886254,1.0,3280.2,3279.9,0.8183]
[1734922886494,1.0,3280.2,3280.0,0.97983]
[1734922886809,1.0,3280.2,3280.1,13.3483]